[Event "Charlotte GM-A May 2022"]
[Site "Charlotte"]
[Date "2022.05.08"]
[Round "7.5"]
[White "Mardov, Dimitar"]
[Black "Spicha, K. Alexander"]
[Result "0-1"]
[ECO "D45"]
[WhiteElo "2402"]
[BlackElo "2083"]
[Annotator "TA"]
[PlyCount "68"]
[EventDate "2022.05.04"]
[EventType "tourn"]
[EventCountry "USA"]
[SourceTitle "playchess.com"]
[Source "ChessBase"]
[SourceQuality "1"]
[TimeControl "5400+30"]

{[%evp 13,68,3,26,25,29,22,14,19,37,0,0,0,-1,-26,-10,-9,-9,-8,-9,-31,-31,-65,-34,-75,-75,-95,-92,-102,-46,-85,-90,-93,-84,-95,-98,-93,-91,-118,-106,-97,-100,-138,-120,-360,-370,-338,-343,-388,-383,-502,-468,-574,-558,-728,-734,-645,-646]} 1. d4 {[%emt 0:00:41]} d5 {[%emt 0:00:08]} 2. c4 {[%emt 0:00:21]} e6 {[%emt 0:00:07]} 3. Nf3 {[%emt 0:00:03]} Nf6 {[%emt 0:00:13]} 4. Nc3 {[%emt 0:00:36]} c6 {[%emt 0:00:24]} 5. e3 {[%emt 0:00:27]} Nbd7 {[%emt 0:00:16]} 6. Qc2 {[%emt 0:00:10]} Bd6 {[%emt 0:20:29]} 7. b3 {[%emt 0:04:00]} e5 {[%emt 0:00:30]} 8. cxd5 {[%emt 0:00:30] D45: Semi-Slav: 5 e3.} Nxd5 {[%emt 0:05:53]} 9. Bb2 Nxc3 {[%emt 0:00:45]} 10. Bxc3 {[%cal Rd4e5] The position is equal.} Qe7 {[%emt 0:04:04]} 11. Be2 e4 {[%emt 0:00:37]} 12. Nd2 Nf6 {[%emt 1:03:04] [#]} 13. Nc4 $146 {[%emt 0:31:46]} ({Predecessor:} 13. O-O O-O 14. Nc4 Bc7 15. Bb2 Re8 16. Ba3 Qe6 17. f4 exf3 18. Bxf3 Ng4 19. Bxg4 Qxg4 {1-0 (66) Turova,I (2295)-Gasparian,M (2075) Yerevan 1999}) 13... O-O {[%emt 0:00:00]} 14. Nxd6 {[%emt 0:00:45]} Qxd6 {[%emt 0:01:00]} 15. Bd2 {[%emt 0:04:59]} Re8 {[%emt 0:00:30]} 16. h3 {[%emt 0:19:43]} Nd5 {[%emt 0:00:00]} 17. g4 f5 {[%emt 0:01:00] Black is more active.} 18. Qc5 {[%emt 0:35:29]} Qf6 {[%emt 0:00:30]} 19. gxf5 {[%emt 0:00:30]} Bxf5 {[%emt 0:00:30]} 20. O-O-O {[%emt 0:00:30]} Qe6 {[%emt 0:00:00]} (20... a5 $17) 21. Rdg1 Bxh3 {[%emt 0:01:00]} 22. Rg5 {[%emt 0:01:00]} Bf5 {[%emt 0:00:30]} 23. Kb1 {[%emt 0:00:30]} b6 {[%emt 0:00:30]} 24. Qc1 {[%emt 0:00:30]} a5 {[%emt 0:00:30]} 25. Bc3 {[%emt 0:00:30]} Re7 {[%emt 0:00:30][%cal Be8e7,Be7a7,Ba7a2][%mdl 32]} 26. Bb2 {[%emt 0:00:30]} a4 {[%emt 0:00:30]} 27. Bd1 {[%emt 0:00:30]} a3 {[%emt 0:00:00]} 28. Bxa3 {[%emt 0:00:00] This costs White the game.} (28. Ba1 $17) 28... Rea7 $19 {[%emt 0:01:00]} 29. Bb2 {[%emt 0:01:00]} Rxa2 {[%emt 0:00:00]} 30. Rhg1 g6 {[%emt 0:00:00]} 31. Be2 b5 {[%emt 0:00:00][%cal Od5f4] [#] Against Bc4. Hoping for ...Nf4! Black is clearly winning.} 32. Qd2 Kh8 {[%emt 0:00:00] ...Qe7 is the strong threat.} 33. Rc1 Qe7 {[%emt 0:00:00]} 34. Rgg1 {[%emt 0:00:00] [#]} Qa3 $3 {[%emt 0:03:00][%mdl 512] Weighted Error Value: White=0.39/Black=0.07 (flawless)} 0-1

[Event "Charlotte GM-A May 2022"]
[Site "Charlotte"]
[Date "2022.05.08"]
[Round "8.1"]
[White "Korley, Kassa"]
[Black "Spicha, K. Alexander"]
[Result "1/2-1/2"]
[ECO "D02"]
[WhiteElo "2413"]
[BlackElo "2083"]
[Annotator "TA"]
[PlyCount "165"]
[EventDate "2022.05.04"]
[EventType "tourn"]
[EventCountry "USA"]
[SourceTitle "playchess.com"]
[Source "ChessBase"]
[SourceQuality "1"]
[TimeControl "5400+30"]

{[%evp 10,165,31,5,4,5,13,15,8,1,9,25,32,29,26,24,42,28,59,59,58,19,37,44,39,30,50,49,43,47,53,74,87,83,77,60,56,57,57,15,32,35,84,85,85,85,180,168,156,168,144,133,137,131,162,62,58,37,11,15,50,15,15,15,31,15,15,19,144,127,173,8,59,67,107,2,5,0,0,32,609,81,80,63,63,16,16,16,27,16,16,16,32,32,32,32,58,75,114,177,93,0,8,8,13,16,16,0,0,0,0,0,0,0,0,0,0,0,0,0,0,0,0,0,0,0,0,0,0,0,0,0,0,0,0,0,0,0,0,0,0,0,0,0,0,0,0,0,0,0,0,0,0,0,0,0,0,0]} 1. Nf3 {[%emt 0:00:05]} d5 {[%emt 0:00:11]} 2. g3 {[%emt 0:00:04]} c5 {[%emt 0:01:05]} 3. Bg2 {[%emt 0:00:07]} Nc6 {[%emt 0:00:34]} 4. d4 {[%emt 0:00:09]} Nf6 {[%emt 0:00:39]} 5. O-O {[%emt 0:00:08]} e6 {[%emt 0:00:45]} 6. b3 {[%emt 0:03:34]} (6. c4 $5) 6... Bd7 {[%emt 0:14:49] D02: 1 d4 d5 2 Nf3 sidelines, including 2...Nf6 3 g3 and 2...Nf6 3 Bf4.} 7. Bb2 {[%emt 0:01:34]} cxd4 {[%emt 0:00:33]} 8. Nxd4 {[%emt 0:00:08]} Bc5 {[%emt 0:00:07]} 9. c4 {[%emt 0:08:04]} O-O {[%emt 0:25:58]} 10. cxd5 {[%emt 0:01:43]} exd5 {[%emt 0:05:46]} 11. Nxc6 {[%emt 0:01:46] [#]} bxc6 $146 {[%emt 0:01:57]} ({Predecessor:} 11... Bxc6 12. Nd2 Re8 13. Rc1 Bb6 14. Nf3 d4 15. Nxd4 Bxg2 16. Kxg2 Qd5+ 17. Nf3 Qxd1 18. Rcxd1 Rxe2 19. Rd2 Rae8 20. Rfd1 Rxd2 {½-½ (20) Molchanov,A (2425)-Eingorn,V (2509) Odessa 2019}) 12. Nc3 {[%emt 0:00:27]} Bg4 {[%emt 0:13:26]} 13. Na4 {[%emt 0:00:22]} Bb6 {[%emt 0:02:09]} 14. Qd3 {[%emt 0:10:52]} Re8 {[%emt 0:00:20]} 15. Bf3 {[%emt 0:04:05] And now Bxf6 would win.} Bxf3 {[%emt 0:03:06]} 16. exf3 {[%emt 0:05:33]} Qd6 {[%emt 0:00:28]} 17. Rac1 {[%emt 0:06:54]} Rac8 {[%emt 0:07:28]} 18. Rc2 {[%emt 0:00:53]} Nd7 {[%emt 0:00:19]} 19. Rfc1 {[%emt 0:04:40]} f6 {[%emt 0:01:17]} 20. Kg2 {[%emt 0:01:42]} Nb8 {[%emt 0:00:37]} 21. h4 {[%emt 0:05:08]} Rc7 {[%emt 0:00:22]} 22. h5 {[%emt 0:02:44][%cal Oh5h6]} h6 $1 {[%emt 0:00:21]} 23. Bc3 {[%emt 0:12:52]} (23. Nxb6 axb6 24. b4 Kh8 $11) 23... Nd7 {[%emt 0:02:41]} 24. Bd2 {[%emt 0:02:49]} ({Reject} 24. Qg6 Re6 $11) 24... Ne5 {[%emt 0:02:31]} 25. Qa6 {[%emt 0:00:03]} d4 {[%emt 0:01:12]} (25... Qe6 $14) 26. Bf4 $1 $16 {[%emt 0:00:08]} Qd5 {[%emt 0:03:20]} 27. Bxe5 {[%emt 0:00:48]} fxe5 {[%emt 0:01:40]} (27... Rxe5 $16 28. Nb2 (28. Nxb6 axb6 29. Rxc6 Rf5 $16) 28... Rf5) 28. Nxb6 $18 {[%emt 0:00:11]} axb6 {[%emt 0:00:15]} 29. Qxb6 {[%emt 0:00:15]} Qf7 {[%emt 0:01:31]} 30. Qa6 {[%emt 0:09:20]} Qxh5 {[%emt 0:02:10]} 31. Rxc6 {[%emt 0:00:07]} Rf7 {[%emt 0:00:27] [#]} 32. Qd3 {[%emt 0:01:04]} (32. g4 $1 $18 {[%cal Rg4h5]} Qg5 33. Rc8) 32... Ref8 $14 {[%emt 0:03:57][%cal Rf7f3]} 33. Rc8 {[%emt 0:05:38] Active counter play!} Rxf3 {[%emt 0:00:22]} 34. Rxf8+ {[%emt 0:00:06]} Rxf8 {[%emt 0:00:03][%mdl 4096] Endgame KQR-KQR} 35. a4 {[%emt 0:01:17][%cal Ba2a4,Ba4a5,Ba5a6][%mdl 32]} Kh8 {[%emt 0:02:02]} 36. Rc7 {[%emt 0:04:15]} Qg4 {[%emt 0:02:29]} 37. Re7 {[%emt 0:02:15]} Qg5 {[%emt 0:01:01]} 38. Re6 {[%emt 0:00:41]} Kg8 {[%emt 0:00:31]} (38... Qh5 $11) 39. a5 {[%emt 0:01:31]} h5 {[%emt 0:00:28]} (39... Qh5 $16 {might work better.}) 40. Rg6 $2 {[%emt 0:01:43]} (40. Qc4 $18 {Intending Rxe5+ and mate.} Kh8 41. Qe2) 40... Qd8 {[%emt 0:00:23]} (40... Qf5 $2 41. Qxf5 Rxf5 42. Rd6 $18) (40... Qc1 $1 $11 41. Qc4+ Qxc4 42. bxc4 Kf7) 41. a6 {[%emt 0:00:40]} e4 {[%emt 0:01:04] [#]} 42. Qxe4 {[%emt 0:00:14]} (42. Qc4+ $1 $16 Kh7 43. Re6) 42... d3 $132 {[%emt 0:00:04][%mdl 2048] Black is not holding back} 43. Qe5 {[%emt 0:01:21][%csl Gg6,LRg7,LRh5][%cal Re5g7]} Qa8+ $1 {[%emt 0:00:44]} 44. Kg1 {[%emt 0:00:09][%csl Gg6][%cal Re5g7] Really sharp!} Rf7 {[%emt 0:00:05][%mdl 8192]} (44... Qa7 $14 45. Qe1 (45. Qd5+ Rf7 $11) 45... Qd4) 45. Re6 $2 {[%emt 0:02:00]} (45. Rd6 $18 {is more deadly.}) 45... Qf3 $16 {[%emt 0:00:41]} 46. Re8+ {[%emt 0:00:14]} Kh7 {[%emt 0:00:45]} 47. Qe4+ {[%emt 0:00:25]} (47. Qe1 $14) 47... Qxe4 $11 {[%emt 0:00:06]} 48. Rxe4 {[%emt 0:00:01] KR-KR} Ra7 {[%emt 0:00:57]} (48... Rd7 {feels hotter.} 49. Re1 Rd6 50. a7 Ra6) 49. Rd4 {[%emt 0:00:27]} Rxa6 {[%emt 0:00:03]} 50. Rxd3 {[%emt 0:00:01]} Ra1+ {[%emt 0:00:51]} 51. Kg2 {[%emt 0:00:02]} Rb1 {[%emt 0:00:05]} 52. f4 {[%emt 0:01:05]} g5 {[%emt 0:01:05]} 53. fxg5 {[%emt 0:03:07] aiming for Kf2.} Kg6 {[%emt 0:00:06]} 54. Kf3 {[%emt 0:00:25] Black must now prevent Ke3.} Kxg5 {[%emt 0:00:04]} 55. Rd5+ {[%emt 0:00:03]} (55. Ke4 $16) 55... Kg6 {[%emt 0:00:13] The position is equal.} 56. Rb5 {[%emt 0:00:02]} Rf1+ {[%emt 0:00:46]} 57. Kg2 {[%emt 0:00:03]} Rb1 {[%emt 0:00:06]} 58. b4 {[%emt 0:00:40]} Rb3 {[%emt 0:00:11]} 59. Kh3 {[%emt 0:00:34]} Rb1 {[%emt 0:00:18]} 60. Kg2 {[%emt 0:00:28]} Rb3 {[%emt 0:00:05]} 61. Kf2 {[%emt 0:00:23]} Kh6 {[%emt 0:00:13]} 62. Rb8 {[%emt 0:00:13]} Kg6 {[%emt 0:01:15]} 63. b5 {[%emt 0:00:07]} Kh6 {[%emt 0:00:29]} 64. b6 {[%emt 0:00:05]} Kg7 {[%emt 0:00:15]} 65. Kg2 {[%emt 0:02:22]} (65. g4 $5 hxg4 66. b7 $11) 65... Kh7 {[%emt 0:00:07]} 66. Kh2 {[%emt 0:00:03]} Kg7 {[%emt 0:00:06]} 67. Kh3 {[%emt 0:00:02]} Rb4 {[%emt 0:00:06]} 68. Kg2 {[%emt 0:01:25]} Rb3 {[%emt 0:00:05]} 69. b7 {[%emt 0:00:10]} Kh7 {[%emt 0:00:55]} 70. Kf2 {[%emt 0:00:02]} Kg7 {[%emt 0:00:17]} 71. Ke2 {[%emt 0:00:03]} (71. g4 $5 hxg4 72. Ke2 $11) 71... Kh7 {[%emt 0:00:13]} 72. Kd2 {[%emt 0:00:02]} Kg7 {[%emt 0:00:10]} 73. Kc2 {[%emt 0:00:02]} Rb6 {[%emt 0:00:21]} 74. Kd3 {[%emt 0:00:03]} Rb4 {[%emt 0:00:18]} 75. Kc3 {[%emt 0:00:06]} Rb1 {[%emt 0:00:14]} 76. Kc4 {[%emt 0:00:04]} Rc1+ {[%emt 0:00:13]} 77. Kd5 {[%emt 0:00:03] Rc8 would kill now.} Rd1+ {[%emt 0:01:19]} 78. Ke6 {[%emt 0:00:10][%cal Ob8g8] White wants to mate with Rg8+!} Rb1 {[%emt 0:00:28]} 79. Kf5 {[%emt 0:00:12]} Rb5+ {[%emt 0:00:10]} 80. Kf4 {[%emt 0:00:03]} Kh7 {[%emt 0:00:52]} 81. Kf3 {[%emt 0:00:36]} Rb4 {[%emt 0:00:07]} 82. Kg2 {[%emt 0:00:27]} Rb3 {[%emt 0:00:16]} 83. Kh3 {[%emt 0:00:18] Weighted Error Value: White=0.31/Black=0.25 (precise)} 1/2-1/2

[Event "Charlotte GM-A May 2022"]
[Site "Charlotte"]
[Date "2022.05.08"]
[Round "8.2"]
[White "Song, Micheal"]
[Black "Mardov, Dimitar"]
[Result "0-1"]
[ECO "E48"]
[WhiteElo "2408"]
[BlackElo "2402"]
[Annotator "TA"]
[PlyCount "68"]
[EventDate "2022.05.04"]
[EventType "tourn"]
[EventCountry "USA"]
[SourceTitle "playchess.com"]
[Source "ChessBase"]
[SourceQuality "1"]
[TimeControl "5400+30"]

{[%evp 14,68,-11,-16,-11,-22,2,-11,0,-38,-41,-56,-49,-41,-37,-42,-46,-95,-94,-236,-246,-246,-248,-234,-238,-262,-217,-213,-196,-216,-201,-246,-237,-314,-295,-308,-279,-282,-278,-342,-302,-371,-368,-424,-384,-429,-409,-443,-394,-482,-462,-615,-628,-628,-601,-691,-485]} 1. d4 {[%emt 0:01:18]} Nf6 {[%emt 0:00:05]} 2. c4 {[%emt 0:00:15]} e6 {[%emt 0:00:04]} 3. Nc3 {[%emt 0:00:09]} Bb4 {[%emt 0:00:05]} 4. e3 {[%emt 0:00:27]} O-O {[%emt 0:00:09]} 5. Bd3 {[%emt 0:00:08]} d5 {[%emt 0:00:05]} 6. cxd5 {[%emt 0:00:08]} exd5 {[%emt 0:00:04]} 7. a3 {[%emt 0:00:10]} Bd6 {[%emt 0:01:46]} 8. Nge2 {[%emt 0:00:09]} Re8 {[%emt 0:00:35] E48: Nimzo-Indian: Rubinstein: 5 Bd3 d5 including 6 Ne2, but excluding 6 a3.} 9. Qc2 {[%emt 0:00:10]} a6 {[%emt 0:03:08] [#]} 10. Bd2 $146 {[%emt 0:09:46]} (10. O-O {seems wilder.} b6 11. Nxd5 Nxd5 12. e4) ({Predecessor:} 10. O-O b6 11. b4 Nbd7 12. Nf4 Bb7 13. Rb1 Nf8 14. f3 Ng6 15. Nfe2 Qe7 16. Ng3 {1-0 (40) Rapport,R (2763)-Vidit,S (2727) Belgrade 2022}) 10... Nbd7 {[%emt 0:05:28] The position is equal.} 11. g4 {[%emt 0:25:15]} Nxg4 {[%emt 0:12:42] [#] White must now prevent ...Qh4.} 12. Bxh7+ {[%emt 0:14:16]} Kh8 {[%emt 0:00:50] Hoping for ...Qh4.} 13. Bf5 $1 {[%emt 0:00:09]} Qh4 {[%emt 0:06:50]} 14. O-O-O $1 {[%emt 0:00:08]} ({Much weaker is} 14. Bxg4 Qxg4 15. Rg1 Qf3 $17) 14... Ndf6 {[%emt 1:05:39]} 15. Be1 {[%emt 0:09:04]} (15. Rdf1 $15) 15... Qh3 $36 {[%emt 0:00:00][%mdl 2048] White is under strong pressure. Black is more active.} ({But not} 15... Nxf2 16. Rf1 $18) 16. Bd3 {[%emt 0:04:26] This costs White the game.} (16. Rg1 $17 {is a better defense.}) 16... Qf3 $19 {[%emt 0:00:00]} 17. Rg1 {[%emt 0:04:55] [#] aiming for Ng3.} Nxf2 {[%emt 0:00:00]} 18. Bxf2 {[%emt 0:00:11]} Qxf2 {[%emt 0:00:00]} 19. Kb1 {[%emt 0:00:59]} Qxe3 {[%emt 0:00:00]} 20. Ng3 {[%emt 0:00:49]} Qh6 {[%emt 0:00:00]} ({Weaker is} 20... Qxd4 21. Bb5 Qc5 22. Bxe8 Nxe8 23. Rge1 $11) 21. Rdf1 {[%emt 0:06:00]} c6 {[%emt 0:00:00]} 22. Nd1 {[%emt 0:06:15]} Qh4 {[%emt 0:00:00]} 23. Nf5 {[%emt 0:06:46]} Bxf5 {[%emt 0:00:00]} (23... Qxh2 $2 24. Rh1 Qxh1 25. Rxh1+ Kg8 26. Nxd6 $18) 24. Bxf5 {[%emt 0:00:04]} Qxd4 {[%emt 0:00:00]} (24... Qxh2 $2 25. Rh1 Qxh1 26. Rxh1+ Kg8 27. Qb3 $18) 25. Qg2 {[%emt 0:00:01][%csl Gg1][%cal Rg2g7]} g6 {[%emt 0:00:00]} 26. Nc3 {[%emt 0:01:33]} Re3 {[%emt 0:00:00]} 27. Nd1 {[%emt 0:02:57]} Re7 {[%emt 0:00:00]} 28. Nc3 {[%emt 0:02:34]} Rg8 {[%emt 0:00:00][%cal Ba8g8,Bg8h8,Bh8h5,Bh5h2][%mdl 32]} 29. Rf3 {[%emt 0:00:14]} Kg7 {[%emt 0:00:00]} 30. Rgf1 {[%emt 0:05:06]} Be5 {[%emt 0:00:00]} 31. Qg5 {[%emt 0:00:17]} Rh8 {[%emt 0:00:00] Black is clearly winning.} 32. Bc2 {[%emt 0:00:49]} Rh5 {[%emt 0:00:00]} 33. Qc1 {[%emt 0:00:11]} Rxh2 {[%emt 0:00:00]} 34. Nd1 {[%emt 0:00:24]} Qd2 {[%emt 0:00:00] Weighted Error Value: White=0.40/Black=0.10 (very precise)} 0-1

[Event "Charlotte GM-A May 2022"]
[Site "Charlotte"]
[Date "2022.05.08"]
[Round "8.4"]
[White "Williams, Justus"]
[Black "Ostrovskiy, Aleksandr"]
[Result "1/2-1/2"]
[ECO "D12"]
[WhiteElo "2417"]
[BlackElo "2397"]
[Annotator "TA"]
[PlyCount "110"]
[EventDate "2022.05.04"]
[EventType "tourn"]
[EventCountry "USA"]
[SourceTitle "playchess.com"]
[Source "ChessBase"]
[SourceQuality "1"]
[TimeControl "5400+30"]

{[%evp 15,110,7,16,22,11,15,36,8,0,5,24,18,8,-2,-4,-8,-3,-31,-29,-29,-33,-35,-25,-49,-21,-25,-43,-29,-35,-40,0,0,0,0,168,55,75,66,58,73,90,101,75,74,79,86,186,187,160,150,154,157,95,110,370,333,419,411,792,750,1196,1089,1256,1142,1044,935,1081,708,1132,1132,908,1031,1001,967,885,8,12,8,8,8,8,8,8,8,8,8,8,8,8,8,8,8,8,8,8,8,8]} 1. Nf3 {[%emt 0:03:45]} d5 {[%emt 0:03:32]} 2. d4 {[%emt 0:01:09]} Nf6 {[%emt 1:27:58]} 3. c4 {[%emt 0:00:22]} c6 {[%emt 0:00:00]} 4. e3 {[%emt 0:01:43]} Bf5 {[%emt 0:00:00]} 5. Nc3 {[%emt 0:03:10]} e6 {[%emt 0:00:00]} 6. Nh4 {[%emt 0:00:36]} Be4 {[%emt 0:00:00]} 7. f3 {[%emt 0:02:57]} Bg6 {[%emt 0:00:00]} 8. Qb3 {[%emt 0:00:22]} Qc7 {[%emt 0:00:00]} 9. Bd2 {[%emt 0:04:04] D12: Slav Defence: 3 Nf3 Nf6 4 e3 Bf5.} Be7 {[%emt 0:00:00]} 10. Nxg6 {[%emt 0:01:27]} hxg6 {[%emt 0:00:00]} 11. O-O-O {[%emt 0:03:50] White is slightly better.} dxc4 {[%emt 0:00:00]} 12. Bxc4 {[%emt 0:00:20]} b5 {[%emt 0:00:00]} 13. Be2 {[%emt 0:05:57]} a6 {[%emt 0:00:00]} 14. f4 {[%emt 0:03:00]} Nbd7 {[%emt 0:00:00]} 15. Kb1 {[%emt 0:03:39]} c5 {[%emt 0:00:00]} 16. dxc5 {[%emt 0:04:30]} (16. g4 $5 {[%cal Rg4g5]}) 16... Nxc5 {[%emt 0:00:00]} 17. Qc2 {[%emt 0:00:31]} Rc8 {[%emt 0:00:00][%cal Oc5e4]} 18. Bf3 {[%emt 0:16:09] [#] Against Nce4} Qb8 $146 {[%emt 0:00:00]} (18... Na4 {looks sharper.} 19. Rc1 Nb6 20. Ne2 Qb8) ({Predecessor:} 18... O-O 19. h4 Qa7 20. a3 Rfd8 21. g4 Nd3 22. Rh2 b4 23. axb4 Nxb4 24. Qa4 Nd3 {0-1 (65) Khademalsharieh,S (2494)-Gunina,V (2451) Tornelo INT 2020}) 19. e4 {[%emt 0:02:31]} b4 {[%emt 0:00:00]} 20. e5 {[%emt 0:00:27]} bxc3 {[%emt 0:00:00]} 21. exf6 {[%emt 0:00:12]} Bxf6 {[%emt 0:00:00]} 22. Bxc3 {[%emt 0:02:09]} Qxf4 {[%emt 0:00:00]} (22... O-O $5 {[%cal Rf6c3]} 23. Bxf6 gxf6 $11) 23. Bxf6 {[%emt 0:03:00]} gxf6 {[%emt 0:00:00]} ({But not} 23... Qxf6 24. Rd3 $16 (24. b4 O-O $17)) 24. Rd3 $1 {[%emt 0:04:32]} Qf5 $2 {[%emt 0:10:22]} (24... Rxh2 $2 25. Rc1 $16) (24... Nxd3 $11 25. Qxc8+ Ke7 26. Qxh8 Qb4) 25. Rc1 {[%emt 0:01:16]} (25. Rc3 $18) 25... Ke7 $14 {[%emt 0:00:27]} (25... Rxh2 $2 26. Rc3 $16) 26. Rc3 {[%emt 0:00:40]} Na4 $1 {[%emt 0:00:11]} 27. Rxc8 {[%emt 0:02:49]} Rxc8 {[%emt 0:00:01][%mdl 64] [#] Pin} 28. Qxf5 {[%emt 0:00:09]} Rxc1+ {[%emt 0:00:02]} 29. Kxc1 {[%emt 0:00:14] Intending Qa5 and mate.} exf5 {[%emt 0:00:01][%mdl 4096] Endgame KB-KN} 30. b4 {[%emt 0:00:53]} Nc3 {[%emt 0:00:47]} (30... Kd6 $16 {was called for.}) 31. Kb2 $18 {[%emt 0:00:03][%mdl 1024] White has strong compensation.} Nb5 {[%emt 0:00:29]} (31... Ne4 32. Be2 $16) 32. Bb7 {[%emt 0:00:42]} Nc7 {[%emt 0:00:06]} 33. Kb3 {[%emt 0:00:14]} f4 {[%emt 0:01:19]} (33... Kd7 $142 34. Kc4 f4) 34. Kc4 $16 {[%emt 0:01:08]} Kd6 $2 {[%emt 0:00:11][%mdl 8192] [#]} (34... g5 $16) 35. h4 $1 $18 {[%emt 0:00:27]} f5 {[%emt 0:00:32]} 36. a4 {[%emt 0:01:05][%cal Ba2a4,Ba4a5][%mdl 32]} f6 {[%emt 0:00:31]} (36... f3 $142 37. Bxf3 (37. gxf3 f6 $18) 37... Ne6) 37. a5 {[%emt 0:08:05]} Ke6 {[%emt 0:01:54]} 38. Kc5 {[%emt 0:00:34]} Kd7 {[%emt 0:00:34]} 39. Bc6+ {[%emt 0:01:35]} Ke7 {[%emt 0:00:03]} 40. Kb6 {[%emt 0:01:27]} Kd6 {[%emt 0:00:03]} 41. Bf3 {[%emt 0:00:31]} Kd7 {[%emt 0:00:34]} 42. Bb7 {[%emt 0:00:41]} Kd6 {[%emt 0:00:12]} 43. Bc8 {[%emt 0:00:43]} Nd5+ {[%emt 0:00:24]} 44. Kxa6 {[%emt 0:00:06]} Nxb4+ {[%emt 0:02:17]} 45. Kb6 $2 {[%emt 0:00:48]} ({Better is} 45. Kb7 $18 Nd3 46. a6) 45... Nd5+ $11 {[%emt 0:00:00] The position is equal.} 46. Kb7 {[%emt 0:00:38] Hoping for a6.} Nb4 {[%emt 0:00:00]} 47. a6 {[%emt 0:01:15]} Nxa6 {[%emt 0:00:00]} 48. Kxa6 {[%emt 0:00:04] Kb7 would kill now.} f3 $1 {[%emt 0:00:42]} 49. gxf3 {[%emt 0:00:49][%cal Oc8f5] White threatens Bxf5! and mate. KB-K3P} Ke5 {[%emt 0:00:05]} 50. Kb5 {[%emt 0:01:02]} Kf4 {[%emt 0:00:02]} 51. Bb7 {[%emt 0:00:11]} Kg3 {[%emt 0:00:08]} 52. Kc5 {[%emt 0:01:58]} Kxh4 {[%emt 0:00:06]} 53. Kd4 {[%emt 0:02:34]} g5 {[%emt 0:02:44][%cal Bg6g5,Bg5g4,Bg4f3][%mdl 32]} 54. Bc8 {[%emt 0:00:58]} g4 {[%emt 0:00:17] Strongly threatening ...g3.} 55. Ke3 {[%emt 0:04:28]} gxf3 {[%emt 0:01:26] Black escapes into a draw.  Weighted Error Value: White=0.26 (precise) /Black=0.27 (precise)} 1/2-1/2